fUST/lending_fUST_20250731
["ID","MTS","AMOUNT","RATE_DAILY","PERIOD"]
[376359000,1753950027426,-179.98425243,0.00019007,2]
[376359001,1753950027450,-30.95004635,0.00019078,2]
[376359002,1753950033119,-141.77801905,0.00019078,2]
[376359003,1753950033143,-160.0,0.00019161,2]
[376359004,1753950033183,-51.09120594,0.00019178,2]
[376359005,1753950034898,-215.38747277,0.00019178,2]
[376359006,1753950037798,-88.55812674,0.00019178,2]
[376359007,1753950037819,-460.0,0.00019178,2]
[376359008,1753950037842,-256.05440049,0.00019178,2]
[376359009,1753950039521,-203.94559951,0.00019178,2]
[376359010,1753950039542,-183.818179,0.00019178,2]
[376359014,1753950133543,-253.98845444,0.00019178,2]
[376359015,1753950140450,-206.01154556,0.00019178,2]
[376359020,1753950195354,-278.29680352,0.00019178,2]
[376359021,1753950198788,-181.70319648,0.00019178,2]
[376359023,1753950264995,-390.85159824,0.00019178,2]
[376359024,1753950267879,-69.14840176,0.00019178,2]
[376359025,1753950267906,-230.85159824,0.00019178,2]
[376359026,1753950269627,-229.14840176,0.00019178,2]
[376359027,1753950269652,-65.52134923,0.00019178,2]
[376359028,1753950325616,247.76375295,0.00018995,2]
[376359032,1753950347079,115.91906829,0.00019,2]
[376359033,1753950347100,138.06938615,0.00019,2]
[376359039,1753950487578,212.261219,0.0001832,2]
[376359048,1753950520144,-172.7280654,0.00019078,2]
[376359049,1753950520167,-1200.0,0.00019176,2]
[376359050,1753950520190,-300.0,0.00019176,2]
[376359051,1753950520211,-300.0,0.00019177,2]
[376359052,1753950520233,-235.7319346,0.00019177,2]
[376359055,1753950523881,-64.2680654,0.00019177,2]
[376359056,1753950523902,-117.34613951,0.00019177,2]
[376359057,1753950525718,-182.65386049,0.00019177,2]
[376359058,1753950525740,-277.34613951,0.00019177,2]
[376359061,1753950526561,2390.07420491,0.00019,2]
[376359065,1753950527989,-180.0,0.00019078,2]
[376359066,1753950530204,-25.76354787,0.00019078,2]
[376359067,1753950530226,-22.65386049,0.00019177,2]
[376359068,1753950530251,-411.58259164,0.00019177,2]
[376359069,1753950532601,-384.68341842,0.00019177,2]
[376359070,1753950534860,-403.73398994,0.00019177,2]
[376359071,1753950534884,-173.49061871,0.00019178,2]
[376359072,1753950537281,-183.75905393,0.00019178,2]
[376359077,1753950563795,-630.27806563,0.00019033,2]
[376359079,1753950568722,-391.97475453,0.00019033,2]
[376359081,1753950571845,-220.0,0.00019033,2]
[376359082,1753950574664,-225.12736346,0.00019033,2]
[376359085,1753950577055,-120.29279131,0.00019033,2]
[376359086,1753950589625,1022.25282016,0.00019,2]
[376359087,1753950599591,177.779812,0.00018619,2]
[376359090,1753950627692,165.1758353,0.000189,2]
[376359152,1753950633632,-300.0,0.00019177,2]
[376359153,1753950633645,-300.0,0.00019177,2]
[376359154,1753950633656,-300.0,0.00019177,2]
[376359155,1753950633667,-300.0,0.00019177,2]
[376359156,1753950633677,-1025.0,0.00019177,2]
[376359157,1753950633687,-351.54047453,0.00019178,2]
[376359158,1753950633696,-460.0,0.00019178,2]
[376359160,1753950633706,-460.0,0.00019178,2]
[376359161,1753950633715,-576.32,0.00019178,2]
[376359162,1753950633732,-460.0,0.00019178,2]
[376359163,1753950633746,-460.0,0.00019178,2]
[376359164,1753950633756,-460.0,0.00019178,2]
[376359165,1753950633765,-166.17373452,0.00019178,2]
[376359166,1753950633775,-460.0,0.00019178,2]
[376359167,1753950633785,-460.0,0.00019178,2]
[376359168,1753950633794,-460.0,0.00019178,2]
[376359169,1753950633804,-1720.16501549,0.00019205,5]
[376359170,1753950633814,-261.85676995,0.00019452,2]
[376359171,1753950633824,-460.0,0.00019452,2]
[376359172,1753950633834,-460.0,0.00019452,2]
[376359173,1753950633843,-460.0,0.00019452,2]
[376359174,1753950633853,-561.92897813,0.00019452,2]
[376359175,1753950633863,-460.0,0.00019452,2]
[376359176,1753950633872,-50000.0,0.00019452,2]
[376359177,1753950633882,-168.16503093,0.00019473,2]
[376359178,1753950633907,-4.56303447,0.00019473,2]
[376359179,1753950633918,-400.18258629,0.00019507,2]
[376359180,1753950633929,-59.81741371,0.00019507,2]
[376359181,1753950633939,-460.0,0.00019507,2]
[376359182,1753950633948,-460.0,0.00019507,2]
[376359183,1753950633958,-45.06551487,0.00019507,2]
[376359233,1753950638030,-414.93448513,0.00019507,2]
[376359236,1753950638039,-460.0,0.00019507,2]
[376359238,1753950638048,-134.20537816,0.00019507,2]
[376359241,1753950638059,-325.79462184,0.00019507,2]
[376359243,1753950638068,-683.17,0.00019507,2]
[376359246,1753950638077,-460.0,0.00019507,2]
[376359249,1753950638086,-460.0,0.00019507,2]
[376359251,1753950638095,-391.99134377,0.00019507,2]
[376359253,1753950638106,-68.00865623,0.00019507,2]
[376359255,1753950638114,-460.0,0.00019507,2]
[376359257,1753950638123,-66.97539271,0.00019507,2]
[376359259,1753950638136,-393.02460729,0.00019507,2]
[376359261,1753950638144,-168.8231805,0.00019507,2]
[376359264,1753950638155,-291.1768195,0.00019507,2]
[376359266,1753950638165,-460.0,0.00019507,2]
[376359268,1753950638174,-285.6599276,0.00019507,2]
[376359270,1753950638185,-191.4800724,0.00019507,2]
[376359272,1753950638195,-274.74678116,0.00019507,2]
[376359274,1753950638204,-460.0,0.00019507,2]
[376359275,1753950638213,-150.3198754,0.00019509,2]
[376359281,1753950638294,-309.6801246,0.00019509,2]
[376359283,1753950638304,-589.04,0.00019509,2]
[376359284,1753950638313,-183.4,0.00019509,2]
[376359285,1753950638323,-460.0,0.00019509,2]
[376359286,1753950638332,-460.0,0.00019509,2]
[376359288,1753950638342,-460.0,0.00019509,2]
[376359290,1753950638351,-460.0,0.00019509,2]
[376359292,1753950638361,-460.0,0.00019509,2]
[376359294,1753950638370,-460.0,0.00019509,2]
[376359296,1753950638379,-460.0,0.00019509,2]
[376359298,1753950638389,-460.0,0.00019509,2]
[376359300,1753950638397,-460.0,0.00019509,2]
[376359302,1753950638407,-571.72,0.00019509,2]
[376359304,1753950638416,-500.0,0.00019509,2]
[376359306,1753950638426,-24900.0,0.00019509,2]
[376359307,1753950638435,-200.0,0.0001956,15]
[376359308,1753950638444,-200.0,0.0001956,15]
[376359309,1753950638453,-200.0,0.0001956,15]
[376359310,1753950638463,-200.0,0.0001956,15]
[376359311,1753950638472,-501.1827514,0.00019573,2]
[376359312,1753950638480,-500.0,0.00019573,2]
[376359313,1753950638489,-500.66252856,0.00019573,2]
[376359314,1753950638498,-505.49255292,0.00019573,2]
[376359315,1753950638508,-500.0,0.00019573,2]
[376359316,1753950638526,-500.0,0.00019573,2]
[376359317,1753950638537,-500.53103283,0.00019573,2]
[376359318,1753950638546,-491.80512213,0.00019573,2]
[376359319,1753950638556,-500.0,0.00019573,2]
[376359320,1753950638566,-500.0,0.00019573,2]
[376359321,1753950638576,-460.0,0.00019726,2]
[376359322,1753950638586,-460.0,0.00019726,2]
[376359323,1753950638595,-460.0,0.00019726,2]
[376359324,1753950638605,-180.13292465,0.00019736,2]
[376359325,1753950638614,-460.0,0.00019781,2]
[376359326,1753950638624,-460.0,0.00019781,2]
[376359327,1753950638633,-683.17,0.00019781,2]
[376359334,1753950638804,-460.0,0.00019781,2]
[376359335,1753950638815,-460.0,0.00019781,2]
[376359336,1753950638824,-287.04,0.00019781,2]
[376359337,1753950638833,-232.91,0.00019781,2]
[376359338,1753950638843,-460.0,0.00019781,2]
[376359339,1753950638853,-460.0,0.00019781,2]
[376359340,1753950638862,-489.1,0.00019781,2]
[376359341,1753950638871,-460.0,0.00019783,2]
[376359342,1753950638881,-460.0,0.00019783,2]
[376359343,1753950638890,-460.0,0.00019783,2]
[376359344,1753950638899,-460.0,0.00019783,2]
[376359345,1753950638908,-460.0,0.00019783,2]
[376359346,1753950638918,-460.0,0.00019783,2]
[376359347,1753950638928,-460.0,0.00019783,2]
[376359348,1753950638937,-460.0,0.0002,2]
[376359349,1753950638946,-460.0,0.0002,2]
[376359350,1753950638955,-165.28579326,0.0002,20]
[376359351,1753950638965,-260.78,0.00020055,2]
[376359352,1753950638974,-683.17,0.00020055,2]
[376359353,1753950638984,-460.0,0.00020055,2]
[376359354,1753950638993,-460.0,0.00020055,2]
[376359355,1753950639002,-460.0,0.00020055,2]
[376359356,1753950639012,-460.0,0.00020055,2]
[376359357,1753950639021,-460.0,0.00020056,2]
[376359358,1753950639031,-395.1,0.00020056,2]
[376359359,1753950639040,-460.0,0.00020056,2]
[376359360,1753950639049,-165.615668,0.00020187,2]
[376359361,1753950639058,-460.0,0.00020273,2]
[376359362,1753950639068,-231.52,0.00020273,2]
[376359363,1753950639078,-683.17,0.00020329,2]
[376359364,1753950639087,-460.0,0.00020329,2]
[376359365,1753950639100,-197.58,0.00020329,2]
[376359366,1753950639110,-460.0,0.00020329,2]
[376359367,1753950639119,-199.47473308,0.0002033,2]
[376359368,1753950639128,-491.20861239,0.0002033,2]
[376359369,1753950639137,-460.0,0.00020547,2]
[376359370,1753950639146,-683.17,0.00020603,2]
[376359371,1753950639156,-460.0,0.00020603,2]
[376359372,1753950639165,-460.0,0.00020603,2]
[376359373,1753950639175,-460.0,0.00020821,2]
[376359374,1753950639184,-683.17,0.00020877,2]
[376359375,1753950639193,-460.0,0.00020877,2]
[376359377,1753950639203,-460.0,0.00020877,2]
[376359378,1753950639212,-500.0,0.00021064,2]
[376359379,1753950639222,-428.62,0.00021095,2]
[376359380,1753950639231,-683.17,0.00021151,2]
[376359381,1753950639240,-460.0,0.00021151,2]
[376359382,1753950639250,-460.0,0.00021151,2]
[376359383,1753950639259,-250.0,0.00021193,2]
[376359384,1753950639268,-683.17,0.00021425,2]
[376359385,1753950639278,-460.0,0.00021425,2]
[376359386,1753950639287,-460.0,0.00021425,2]
[376359387,1753950639297,-200.0,0.00021477,15]
[376359388,1753950639306,-200.0,0.00021477,15]
[376359389,1753950639316,-200.0,0.00021477,15]
[376359390,1753950639325,-200.0,0.00021477,15]
[376359391,1753950639334,-320.0,0.00021477,15]
[376359392,1753950639343,-999.49231525,0.000215,2]
[376359393,1753950639353,-500.0,0.0002162,2]
[376359395,1753950639362,-460.0,0.00021631,2]
[376359397,1753950639371,-460.0,0.00021631,2]
[376359399,1753950639381,-460.0,0.00021631,2]
[376359401,1753950639390,-460.0,0.00021631,2]
[376359403,1753950639400,-323.89066846,0.00021631,2]
[376359405,1753950639410,-460.0,0.00021631,2]
[376359408,1753950639419,-635.0,0.00021632,2]
[376359411,1753950639430,-407.0,0.00021632,2]
[376359414,1753950639439,-2146.0,0.00021632,2]
[376359417,1753950639449,-683.17,0.00021699,2]
[376359419,1753950639458,-303.6,0.00021699,2]
[376359422,1753950639468,-309.032,0.00021718,2]
[376359424,1753950639477,-12642.0599901,0.00021854,2]
[376359427,1753950639487,-222.92,0.00021905,2]
[376359430,1753950639499,-460.0,0.00021905,2]
[376359433,1753950639508,-683.17,0.00021973,2]
[376359436,1753950639518,-1618.6,0.00022,7]
[376359438,1753950639527,-161.77,0.00022,2]
[376359440,1753950639536,-165.0,0.00022,2]
[376359442,1753950639545,-1084.06246744,0.00022147,2]
[376359444,1753950639560,-460.0,0.00022179,2]
[376359446,1753950639569,-1047.4,0.00022219,10]
[376359448,1753950639578,-11422.41337859,0.00022229,2]
[376359450,1753950639587,-683.17,0.00022247,2]
[376359452,1753950639597,-729.49,0.00022306,3]
[376359454,1753950639606,-500.0,0.00022312,2]
[376359456,1753950639615,-500.0,0.00022312,2]
[376359458,1753950639624,-500.0,0.00022312,2]
[376359460,1753950639633,-500.0,0.00022312,2]
[376359462,1753950639646,-500.0,0.00022312,2]
[376359464,1753950639657,-500.0,0.00022312,2]
[376359467,1753950639668,-500.0,0.00022312,2]
[376359469,1753950639678,-500.0,0.00022312,2]
[376359471,1753950639689,-500.0,0.00022312,2]
[376359473,1753950639698,-500.0,0.00022312,2]
[376359475,1753950639707,-500.0,0.00022312,2]
[376359477,1753950639719,-613.18846779,0.00022312,2]
[376359479,1753950639728,-500.0,0.00022312,2]
[376359481,1753950639737,-357.6099415,0.00022312,2]
[376359482,1753950639747,-500.0,0.00022312,2]
[376359484,1753950639756,-500.0,0.00022312,2]
[376359486,1753950639766,-500.0,0.00022312,2]
[376359487,1753950639775,-435.8090269,0.00022312,2]
[376359488,1753950639785,-289.49568451,0.00022312,2]
[376359490,1753950639795,-500.0,0.00022312,2]
[376359492,1753950639804,-500.0,0.00022312,2]
[376359494,1753950639813,-500.0,0.00022312,2]
[376359496,1753950639823,-500.0,0.00022312,2]
[376359498,1753950639832,-500.0,0.00022312,2]
[376359500,1753950639842,-500.0,0.00022312,2]
[376359502,1753950639852,-152.46686492,0.00022312,2]
[376359504,1753950639862,-408.08765167,0.00022312,2]
[376359506,1753950639873,-500.0,0.00022312,2]
[376359508,1753950639882,-168.0252034,0.00022312,2]
[376359510,1753950639891,-500.0,0.00022312,2]
[376359512,1753950639901,-500.0,0.00022312,2]
[376359514,1753950639910,-500.0,0.00022312,2]
[376359516,1753950639919,-500.0,0.00022312,2]
[376359518,1753950639929,-500.0,0.00022312,2]
[376359520,1753950639938,-500.0,0.00022312,2]
[376359522,1753950639947,-500.0,0.00022312,2]
[376359524,1753950639957,-500.0,0.00022312,2]
[376359526,1753950639967,-500.0,0.00022312,2]
[376359529,1753950639976,-500.0,0.00022312,2]
[376359531,1753950639986,-500.0,0.00022312,2]
[376359533,1753950639995,-500.0,0.00022312,2]
[376359535,1753950640005,-500.0,0.00022312,2]
[376359537,1753950640014,-500.0,0.00022312,2]
[376359539,1753950640024,-500.0,0.00022312,2]
[376359541,1753950640033,-500.0,0.00022312,2]
[376359543,1753950640043,-500.0,0.00022312,2]
[376359545,1753950640052,-500.0,0.00022312,2]
[376359547,1753950640061,-500.0,0.00022312,2]
[376359549,1753950640071,-500.0,0.00022312,2]
[376359551,1753950640080,-500.0,0.00022312,2]
[376359553,1753950640089,-500.0,0.00022312,2]
[376359555,1753950640098,-500.0,0.00022312,2]
[376359557,1753950640108,-500.0,0.00022312,2]
[376359559,1753950640117,-500.0,0.00022312,2]
[376359561,1753950640127,-500.0,0.00022312,2]
[376359563,1753950640136,-583.90864987,0.00022312,2]
[376359565,1753950640145,-500.0,0.00022312,2]
[376359567,1753950640155,-500.0,0.00022312,2]
[376359569,1753950640166,-500.0,0.00022312,2]
[376359571,1753950640175,-500.0,0.00022312,2]
[376359573,1753950640185,-500.0,0.00022312,2]
[376359575,1753950640195,-500.0,0.00022312,2]
[376359577,1753950640204,-500.0,0.00022312,2]
[376359579,1753950640213,-500.0,0.00022312,2]
[376359581,1753950640222,-500.0,0.00022312,2]
[376359583,1753950640231,-500.0,0.00022312,2]
[376359585,1753950640240,-500.0,0.00022312,2]
[376359588,1753950640254,-500.0,0.00022312,2]
[376359590,1753950640265,-500.0,0.00022312,2]
[376359592,1753950640276,-500.0,0.00022312,2]
[376359595,1753950640289,-500.0,0.00022312,2]
[376359597,1753950640300,-500.0,0.00022312,2]
[376359599,1753950640311,-500.0,0.00022312,2]
[376359601,1753950640323,-500.0,0.00022312,2]
[376359603,1753950640333,-500.0,0.00022312,2]
[376359606,1753950640343,-500.0,0.00022312,2]
[376359608,1753950640352,-500.0,0.00022312,2]
[376359610,1753950640364,-500.0,0.00022312,2]
[376359612,1753950640374,-500.0,0.00022312,2]
[376359614,1753950640385,-500.0,0.00022312,2]
[376359616,1753950640396,-500.0,0.00022312,2]
[376359618,1753950640406,-500.0,0.00022312,2]
[376359621,1753950640417,-500.0,0.00022312,2]
[376359623,1753950640428,-500.0,0.00022312,2]
[376359625,1753950640439,-300.30811982,0.00022312,2]
[376359627,1753950640451,-500.0,0.00022312,2]
[376359630,1753950640468,-500.0,0.00022312,2]
[376359633,1753950640486,-500.0,0.00022312,2]
[376359635,1753950640499,-500.0,0.00022312,2]
[376359638,1753950640512,-500.0,0.00022312,2]
[376359640,1753950640525,-500.0,0.00022312,2]
[376359643,1753950640538,-500.0,0.00022312,2]
[376359645,1753950640551,-500.0,0.00022312,2]
[376359647,1753950640563,-500.0,0.00022312,2]
[376359649,1753950640575,-565.73906329,0.00022316,2]
[376359652,1753950640587,-565.73906329,0.00022316,2]
[376359654,1753950640598,-578.59676928,0.00022316,2]
[376359656,1753950640610,-578.59676928,0.00022316,2]
[376359659,1753950640625,-578.59676928,0.00022316,2]
[376359661,1753950640637,-578.59676928,0.00022316,2]
[376359664,1753950640653,-578.59676928,0.00022316,2]
[376359666,1753950640665,-578.59676928,0.00022316,2]
[376359668,1753950640677,-578.59676928,0.00022316,2]
[376359670,1753950640689,-578.59676928,0.00022316,2]
[376359673,1753950640701,-578.59676928,0.00022316,2]
[376359675,1753950640712,-587.23106068,0.00022316,2]
[376359677,1753950640726,-587.23106068,0.00022316,2]
[376359679,1753950640737,-587.23106068,0.00022316,2]
[376359682,1753950640748,-587.23106068,0.00022316,2]
[376359684,1753950640760,-587.23106068,0.00022316,2]
[376359686,1753950640770,-587.23106068,0.00022316,2]
[376359688,1753950640779,-587.23106068,0.00022316,2]
[376359690,1753950640789,-587.23106068,0.00022316,2]
[376359692,1753950640799,-587.23106068,0.00022316,2]
[376359694,1753950640808,-587.23106068,0.00022316,2]
[376359696,1753950640819,-587.23106068,0.00022316,2]
[376359699,1753950640830,-437.57746477,0.00022317,2]
[376359701,1753950640840,-370000.0,0.00022317,2]
[376359703,1753950640851,-150.429748,0.00022329,6]
[376359705,1753950640862,-53338.87,0.000224,2]
[376359707,1753950640873,-306.0,0.00022438,2]
[376359710,1753950640883,-456.8717333,0.00022453,2]
[376359712,1753950640894,-150.0,0.000225,2]
[376359714,1753950640905,-683.17,0.00022521,2]
[376359716,1753950640916,-1084.0624674,0.00022526,2]
[376359718,1753950640927,-161.77,0.00022561,2]
[376359721,1753950640938,-150.429748,0.00022562,6]
[376359723,1753950640950,-151.0,0.00022608,4]
[376359725,1753950640961,-500.0,0.00022713,2]
[376359728,1753950640972,-683.17,0.00022795,2]
[376359730,1753950640983,-889.55,0.000229,2]
[376359732,1753950640995,-1084.0624674,0.00022905,2]
[376359734,1753950641006,-244.6744428,0.00022928,2]
[376359736,1753950641017,-52087.75848589,0.0002299,2]
[376359739,1753950641029,-160.0,0.00023,2]
[376359741,1753950641040,-150.429748,0.00023008,4]
[376359743,1753950641050,-150.429748,0.00023046,2]
[376359745,1753950641060,-683.17,0.00023069,2]
[376359747,1753950641071,-687.17129913,0.00023075,2]
[376359749,1753950641080,-151.0,0.00023099,5]
[376359752,1753950641090,-161.77,0.00023121,2]
[376359754,1753950641100,-150.429748,0.00023164,4]
[376359756,1753950641109,-500.0,0.00023256,2]
[376359758,1753950641119,-1084.0624674,0.00023283,2]
[376359760,1753950641130,-683.17,0.00023343,2]
[376359762,1753950641141,-7613.19082743,0.000234,2]
[376359764,1753950641151,-150.429748,0.00023414,15]
[376359767,1753950641163,-460.0,0.00023499,2]
[376359769,1753950641175,-11422.41337859,0.00023565,2]
[376359771,1753950641185,-168.0,0.00023567,2]
[376359773,1753950641197,-200.0,0.00023583,15]
[376359775,1753950641206,-200.0,0.00023583,15]
[376359777,1753950641216,-200.0,0.00023583,15]
[376359779,1753950641227,-200.0,0.00023583,15]
[376359782,1753950641238,-200.0,0.00023583,15]
[376359784,1753950641248,-200.0,0.00023583,15]
[376359786,1753950641258,-366.0,0.00023583,15]
[376359788,1753950641269,-151.0,0.0002359,5]
[376359790,1753950641280,-1618.6,0.000236,7]
[376359792,1753950641291,-683.17,0.00023617,2]
[376359794,1753950641302,-1084.0624674,0.00023662,2]
[376359797,1753950641312,-161.77,0.00023682,2]
[376359799,1753950641322,-150.429748,0.00023705,15]
[376359801,1753950641332,-548.11,0.00023751,7]
[376359803,1753950641342,-465.0948923,0.00023773,2]
[376359805,1753950641352,-153.0,0.00023781,2]
[376359807,1753950641362,-153.0,0.00023781,2]
[376359809,1753950641372,-153.0,0.00023781,2]
[376359811,1753950641382,-500.0,0.00023785,2]
[376359813,1753950641392,-150.429748,0.00023806,2]
[376359815,1753950641402,-683.17,0.00023891,2]
[376359817,1753950641412,-165.1758353,0.000239,2]
[376359820,1753950641424,-2200.0,0.00023928,2]
[376359822,1753950641435,-3453.4327081,0.00023998,2]
[376359824,1753950641446,-151.0,0.00023998,7]
[376359826,1753950641457,-160.0,0.00024,7]
[376359828,1753950641468,-151.0,0.00024004,7]
[376359830,1753950641479,-151.0,0.00024004,7]
[376359832,1753950641489,-151.0,0.00024004,7]
[376359835,1753950641500,-151.0,0.00024081,6]
[376359837,1753950641510,-500.0,0.00024099,2]
[376359839,1753950641521,-414.005171,0.00024152,2]
[376359841,1753950641531,-683.17,0.00024165,2]
[376359843,1753950641542,-150.429748,0.00024191,3]
[376359845,1753950641553,-53338.87,0.000242,2]
[376359847,1753950641564,-274.102099,0.000242,7]
[376359849,1753950641575,-151.0,0.000242,7]
[376359852,1753950641585,-151.0,0.000242,7]
[376359854,1753950641597,-151.0,0.000242,7]
[376359856,1753950641609,-151.0,0.000242,7]
[376359858,1753950641619,-151.0,0.000242,7]
[376359860,1753950641630,-230.642644,0.000242,7]
[376359863,1753950641643,-151.0,0.000242,7]
[376359865,1753950641659,-151.0,0.000242,7]
[376359867,1753950641669,-161.77,0.00024242,2]
[376359869,1753950641681,-168.0,0.00024253,2]
[376359871,1753950641692,-500.0,0.00024271,2]
[376359873,1753950641702,-500.0,0.00024396,2]
[376359876,1753950641712,-683.17,0.00024439,2]
[376359878,1753950641722,-500.0,0.00024456,2]
[376359880,1753950641734,-500.0,0.00024545,2]
[376359882,1753950641744,-151.0,0.00024572,6]
[376359884,1753950641754,-509.06648791,0.00024595,2]
[376359886,1753950641765,-500.0,0.00024596,2]
[376359889,1753950641775,-500.0,0.00024607,2]
[376359891,1753950641785,-500.0,0.00024622,2]
[376359893,1753950641795,-635.0,0.00024632,2]
[376359895,1753950641805,-407.0,0.00024632,2]
[376359897,1753950641815,-2146.0,0.00024632,2]
[376359899,1753950641825,-500.0,0.00024646,2]
[376359901,1753950641835,-33032.20639094,0.0002465,2]
[376359903,1753950641845,-300.0,0.00024657,4]
[376359906,1753950641855,-300.0,0.00024657,4]
[376359922,1753950642008,-408.20465232,0.00024657,4]
[376359924,1753950642025,-280.0,0.00024658,2]
[376359927,1753950642035,-200.0,0.00024658,15]
[376359929,1753950642045,-221.92136843,0.00024658,2]
[376359931,1753950642055,-586.0,0.00024658,2]
[376359933,1753950642064,-683.17,0.00024713,2]
[376359934,1753950642074,-500.0,0.00024713,2]
[376359936,1753950642083,-500.0,0.00024734,2]
[376359938,1753950642093,-500.0,0.00024743,2]
[376359940,1753950642102,-15429.27,0.000248,7]
[376359942,1753950642111,-2346.56,0.000248,7]
[376359944,1753950642121,-151.0,0.000248,7]
[376359946,1753950642130,-207.79514,0.000248,7]
[376359948,1753950642139,-151.0,0.000248,7]
[376359950,1753950642149,-151.0,0.000248,7]
[376359952,1753950642159,-253.967213,0.000248,7]
[376359954,1753950642168,-161.77,0.00024803,2]
[376359956,1753950642178,-2830.87314603,0.00024873,2]
[376359958,1753950642187,-151.0,0.0002489,7]
[376359960,1753950642196,-248.937658,0.0002489,7]
[376359962,1753950642205,-151.0,0.0002489,7]
[376359964,1753950642214,-301.991303,0.000249,7]
[376359967,1753950642223,-151.0,0.000249,7]
[376359969,1753950642233,-151.0,0.000249,7]
[376359971,1753950642241,-151.0,0.000249,7]
[376359973,1753950642250,-151.0,0.000249,7]
[376359975,1753950642259,-151.0,0.000249,7]
[376359977,1753950642269,-200.431494,0.000249,7]
[376359980,1753950642281,-151.0,0.000249,7]
[376359981,1753950642291,-400.209723,0.000249,7]
[376359983,1753950642301,-400.209723,0.000249,7]
[376359986,1753950642310,-32083.8922493,0.000249,2]
[376359994,1753950642375,-153644.29288418,0.000249,2]
[376359996,1753950642387,-9283.83394316,0.000249,2]
[376359999,1753950642398,-3877.64549092,0.000249,2]
[376360001,1753950642409,-351.27555648,0.000249,2]
[376360006,1753950642447,-460.0,0.00019507,2]
[376360008,1753950642456,-8.87213272,0.00019781,2]
[376360060,1753950642950,-181.63424312,0.00019781,2]
[376360062,1753950642963,-54.37829518,0.00019781,2]
[376360065,1753950642973,-629.25760966,0.000249,2]
[376360067,1753950642988,-151.0,0.00023815,7]
[376360069,1753950643002,-2741.72562866,0.000249,2]
[376360071,1753950643013,-8193.85861134,0.000249,2]
[376360079,1753950643154,-791.2784889,0.000199,2]
[376360080,1753950643166,-747.48382428,0.000199,2]
[376360081,1753950643178,-389.08634956,0.000199,2]
[376360346,1753950645772,-354.00118791,0.000199,2]
[376360348,1753950645782,-2281.8498506,0.00020141,2]
[376360350,1753950645791,-1714.17071149,0.0002023,2]
[376360358,1753950645879,-8624.55405049,0.0002023,2]
[376364209,1753950685743,-576.32,0.00019178,2]
[376369290,1753950747146,-163.17976251,0.00019178,2]
[376369291,1753950771587,208.281444,0.00018603,2]
[376369292,1753950771972,330.96541109,0.00018867,2]
[376369299,1753950829374,165.615668,0.00013699,2]
[376369300,1753950850232,-300.0,0.00019177,2]
[376369301,1753950850256,-261.34565889,0.00019178,2]
[376369302,1753950852142,-35.4745786,0.00019178,2]
[376369303,1753950852163,-175.04443718,0.00019178,2]
[376369304,1753950854928,-264.11152,0.00019178,2]
[376369305,1753950856654,-20.84404282,0.00019178,2]
[376369306,1753950856677,-460.0,0.00019178,2]
[376369307,1753950856700,-141.26595718,0.00019178,2]
[376369308,1753950858425,-302.2731533,0.00019178,2]
[376369309,1753950861386,-16.46088952,0.00019178,2]